Workbook

Sheet Úvod
A1: Numerické metody pro Excel | E1: Verze | F1: V1.07
A3: Moduly obsahují základní numerické metody pro výpočty v Excelu
A4: Spuštěním šablony Numer.xltm se vytváří jednotlivé instance aplikace Numer1.xlsm, Numer2.xlsm,…
A5: V následujících listech je příklad použití
A6: Pokud už v konkrétní aplikaci nepotřebujete listy Úvod a příklady, můžete je smazat
A7: Některé metody existují ve dvou verzích: klasicky a přes class modul, který je obecnější
A8: U svých aplikací si přeprogramujte routiny F a FKT, FUN konkrétních tvarů rovnic
A9: Kvůli rutinám GAUSS je nastaveno Option Base 1 (indexy polí od 1)
A11: Sub RKM(n, x, xe, Y(), delta, star, zz())
A12: Numerická integrace soustavy obyč. diferenciálních rovni metodou Runge-Kutta-Merson
A13: s automatickou regulací délky integračního kroku
A14: n - počet rovnic; x- počáteční x integrace; xe-koncové x pro vypočtený integrační krok
A15: delta - požadovaná abs. Přesnost (např.: 0.00001); star - na počátku integrace nastavit na 1
A16: zz() - pole s parametry modelu
A17: Vyžaduje naprogramovat podprogram Sub FKT(n, x, Y(), F(), zz()) s konkrétním tvarem rovnic
A18: Více aplikací se řeší ve FKT přepínačem FKTPrep
A20: Function Fmin(n, x() As Double, eps As Double) As Double
A21: Minimalizace funkce n-proměnných Rosenbrockovou metodou
A22: n - počet proměnných; x() pole proměnných parametrů; eps - požadovaná abs. Přesnost
A23: Vyžaduje naprogramovat fukci Function F(B() As Double) As Double s cílovou funkcí k minimalizaci
A24: Více aplikací se řeší ve F přepínačem FminPrep
A26: Function Fmin1(n, x() As Double, eps As Double) As Double
A27: Minimalizace funkce n-proměnných metodou Nelder-Mead (simplex)
A28: n - počet proměnných; x() pole proměnných parametrů; eps - požadovaná abs. Přesnost
A29: Vyžaduje naprogramovat fukci Function F(B() As Double) As Double s cílovou funkcí k minimalizaci
A31: Function GAUSS(A_, Optional n, Optional nCol)
A32: Řešení soustavy lineárních rovnic Gaussovou eliminací jako maticová funkce (Ctrl+Shift+Enter)
A33: A rozšířená matice soustavy; n počet rovnic (nepovinné); nCol počet pravých stran (nepovinné)
A34: A se zadává jako rozmezí (range) na listu
A36: Function GAUSST(A_, Optional n, Optional nRov)
A37: Řešení soustavy lineárních rovnic Gaussovou eliminací jako maticová funkce (Ctrl+Shift+Enter)
A38: Podprogram pro řešení přeurčené, obdélníkové soustavy lineárních rovnic
A39: (více rovnic, než proměnných, řeší se ve smyslu nejmenších čtverců AT.A.x = AT.b)
A40: A rozšířená matice soustavy; n počet rovnic (nepovinné); nRov počet rovnic (řádků matice) (nepovinné)
A42: Function Newton(n, nProm, nUnknown, XX, iPom, eps, alam, nIter,NewtPrep, form, _
A43: Optional par1, Optional par2, Optional par3, Optional par4, Optional par5)
A44: Řešení soustavy nelineárních rovnic methodou Newton-Raphsonovou
A45: s výběrem neznamych z vektoru proměnných
A46: n - počet rovnic; nProm - počet proměnných použitých v podprogramu FUN( )
A47: nUnknown - počet neznámých; XX - vektor proměnných;
A48: iPom - vektor indexu proměnných uvažovaných jako neznámé; účinných je
A49: prvních nUnknown prvků, jejichž obsahy určují pořadové číslo neznámé
A50: eps - požadovaná relativni přesnost (doporučená >=1.E-5)
A51: alam - >0 a <2 ..maximální přípustná relativní korekce promenne (doporučeno 0.5)
A52: zachovává stejné znaménko proměnné !
A53: <0 .. v absolutní hodnotě stejný učinek. Umožňuje změnu znaménka proměnné !
A54: >2 .. zlomková část alam tvoří tlumicí konstantu pro klasické tlumeni abs.oprav kořenu
A55: nIter - maximalni přípustný počet iterací, na výstupu skutečný potřebný počet iterací
A56: NewtPrep - 0,1,2… přepínač aplikace pravých stran pro FUN()
A57: form - formát výstupu. Vektor výsledků: "v" vertikálně; "h" horizontálně
A58: par1, par2,...... uživatelské parametry soustavy rovnic (mohou být i poli (range))
A59: Vyžaduje naprogramovat fukci Sub FUN(x, f, Nequa, Optional par1, Optional par2, Optional par3, Optional par4, Optional par5)
A60: obsahující pravé strany rovnic f(i)= ... proměnné jako x(i,1)
A61: Více aplikací se řeší ve FUN přepínačem NewtPrep
A63: Function RKMm(nRov, x_, xe, y_, delta, star_, FKTmPrepin, _
A64: Optional Par1, Optional Par2, Optional Par3, Optional Par4, Optional Par5)
A65: Maticová funkce numerické integrace soustavy obyč. diferenciálních rovni metodou Runge-Kutta-Merson
A66: nRov počet rovnic soustavy; nOut počet prvků pole pro výst.pomoc.prarmetry
A67: x_,xe interval integrace v proměnné x; y_() vektor řešení
A68: delta - abs.přesnost v jednotlivém kroku; star =1 v počátečním intervalu, pak =0
A69: Star musí být v prvním použitém řádku větší než nula, pak je jedno! (lze přímo 1)
A70: FKTmPrep - 0,1,2...přepínač č. apliakce pravých stran
A71: Hodnoty par1 tvoří pole par1(1),par1(2).... a nelze je v těle RKMs ani FKTs měnit
A72: Vyžaduje naprogramovat podprogram Sub FKTm(n, x, y, f, Optional par1,...) s konkrétním tvarem rovnic
A73: Více aplikací se řeší ve FKT přepínačem FKTmPrep
A76: Function RKMs(nRov, x_, xe, y_, delta, star_,RKMsPrep, Optional ByVal nOut = 1, _
A77: Optional par1, Optional par2, Optional par3, Optional par4, Optional par5)
A78: Maticová funkce numerické integrace soustavy obyč. diferenciálních rovni metodou Runge-Kutta-Merson
A79: po oblouku ds = Sqrt(dx2+dy2)
A80: nRov počet rovnic soustavy; nOut počet prvků pole pro výst.pomoc.prarmetry
A81: x,xe interval integrace v proměnné x; y(2*nRov+3+nOut) vektor řešení
A82: v y(nRov+1) se přenáší hodnota proměnné x (duplicitně)
A83: v y(nRov+2) se přenáší délka integračního oblouku s
A84: delta - abs.přesnost v jednotlivém kroku; star =1 v počátečním intervalu, pak =0
A85: Star musí být v prvním použitém řádku větší než nula, pak je jedno! (lze přímo 1)
A86: FKTsPrep - 0,1,2...přepínač č. apliakce pravých stran
A87: Hodnoty par1 tvoří pole par1(1),par1(2).... a nelze je v těle RKMs ani FKTs měnit
A88: Obdobně to platí i při použití par2: par2(1),par2(2)....
A89: Pokud uživatel definuje maticové pole širší (2*Nrov+3) buněk, zobrazí se mu kromě
A90: integrovaných funkcí,x a oblouku i délka skutečného int. kroku a hodnoty derivací.
A91: Deklaruje-li uživatel nOut>1 může použít nOut vnitřních prvků pole z_( ) do
A92: kterých ve FKTs může ukládat hodnoty. Zobrazí se v buňkách 2*nRov+4 a následujících
A93: Vyžaduje naprogramovat podprogram Sub FKTs(n, x, y, f, Optional par1,...) s konkrétním tvarem rovnic
A94: Více aplikací se řeší ve FKT přepínačem FKTsPrep
A97: Function NonEQ(n, x, eps, alam, NewtPrep, Optional FminPrep,Optional par1, Optional par2, Optional par3)
A98: Maticové řešení soustavy nelineárních rovnic třemi metodami: methodou Newton-Raphsonovou
A99: Rosenbrock a Nelder-Mead
A100: Kvůli titulkům pro výsledky zvolte matici (n+1)x6
A101: n- počet rovnic (stejné jako neznámých)
A102: x - rozmezí s počátečními odhady proměnných
A103: eps - požadovaná relativni přesnost (doporučená >=1.E-5)
A104: alam - >0 a <2 ..maximální přípustná relativní korekce promenne (doporučeno 0.5)
A105: zachovává stejné znaménko proměnné !
A106: <0 .. v absolutní hodnotě stejný učinek. Umožňuje změnu znaménka proměnné !
A107: >2 .. zlomková část alam tvoří tlumicí konstantu pro klasické tlumeni abs.oprav kořenu
A108: NewtPrep - 0,1,2… přepínač aplikace pravých stran pro FUN()
A109: FminPrep - 0,1,2… přepínač aplikace cílové funkce minimalizace f()
A110: pokud je FminPrep=0 nebo není zadán vytvoří se cílová fce minimalizace
A111: automaticky pomocí rutiny FUN z Newton
A112: par1, par2,...... uživatelské parametry soustavy rovnic (mohou být i poli (range))
A114: Přidán list Regrese a funkce InsertCode(Modul as String,kod as String,Jednorazove as Boolean, sekvence as String,Optional bezHlasek as Integer, Optional radek as Integer)
A115: Modul název modulu kam kod vkládáme
A116: kod programový vkládaný kód zakončovaný vbCrLf (i více řádků, na konci bez vbCrLf)
A117: Jednorazove true jen jednoua konec; false opakovaně
A118: sekvence textová sekvence, která se vyhledá ve stávajícím kodu a deginuje řádek k vložení a nahrazení (např. #regvz)
A119: bezHlasek 0-všechny hlášky; 1-jen hláška o vložení kodu; 2-žádné hlášky
A120: radek 0 nebo č. řádku, který s ekodem nahradí
A123: Function TranslateEQ(Code As String, yprom As String, konst As String, xprom As String) As String
A124: přeloží obecně zadaný regresná vztah ve tvaru y=f(x,a) nebo y=f(x,b) do konkrétních proměnných použitých v kódu
A125: Code zadaný obecně definovaný vztah
A126: yprom čím konkrétním se má nahradit identifikátor y (např."regfun")
A127: konst čím konkrétním se má nahradit identifikátor hledaných konstant a či b (např. "par")
A128: xprom čím konkrétním se má nahradit identifikátor x (např."xReg(i)")
A129: Zavoláme-li na: Code="y = a1+a2*x+a3*x*x"
A130: Code = TranslateEQ(Code, "regfun", "b", "xReg(i)") dostaneme v Code
A131: "rgfun = b(1)+b(2)*xReg(i)+b(3)*xReg(i)*xReg(i)"
A132: a to můžeme použít do kódu
A135: Function MatNas(A, B, Optional n as integer, Optional m as integer)
A136: násobení matic, vrací výsledek v matici C=A.B
A137: A první matice jako range
A138: B druhá matice jako range
A139: n počet řádků matice A (nepovinné, raději neuvádět)
A140: m počet sloupců matice B (nepovinné, raději neuvádět)
A141: Výsledná matice má tolik řádků jako matice A a tolik sloupců jako matice B

Sheet Integrace
A1: Integrace pomocí RKM | D1: klasicky
E2: y1' = a*y1 | F2: y1(0) = 1
A3: a = | B3: 1 | E3: y2' = -sin(x) | F3: y2(0) = 1
A5: x | B5: y1 | C5: y1anal | D5: y2 | E5: y2anal | F5: D1 | G5: D2 | I5: Public Sub Integrace()
A6: 0 | C6: 1 | E6: 1 | F6: =B6-C6 -> -1 | G6: =D6-E6 -> -1 | I6: ' Klasická integrace bez class modulu
A7: 0.1 | B7: 1.105170903 | C7: 1.105170918 | D7: 0.9950041651 | E7: 0.9950041653 | F7: =B7-C7 -> -1.529786986e-08 | G7: =D7-E7 -> -1.735181998e-10 | I7: ' Podprogramy RKM i FKT jsou součástí klasického modulu
A8: 0.2 | B8: 1.221402724 | C8: 1.221402758 | D8: 0.9800665771 | E8: 0.9800665778 | F8: -3.381352154e-08 | G8: -6.923387419e-10 | I8: ' zz() parametry modelu
A9: 0.3 | B9: 1.349858752 | C9: 1.349858808 | D9: 0.9553364876 | E9: 0.9553364891 | F9: -5.605458053e-08 | G9: -1.551277995e-09 | I9: Dim x As Double, xe As Double, dx As Double
A10: 0.4 | B10: 1.491824615 | C10: 1.491824698 | D10: 0.9210609913 | E10: 0.921060994 | F10: -8.259985562e-08 | G10: -2.741753713e-09 | I10: Dim Y(10), zz(10), a, ir As Integer
A11: 0.5 | B11: 1.648721157 | C11: 1.648721271 | D11: 0.8775825576 | E11: 0.8775825619 | F11: -1.141086972e-07 | G11: -4.251870966e-09 | I11: Set a = Worksheets("Integrace")
A12: 0.6 | B12: 1.822118649 | C12: 1.8221188 | D12: 0.8253356088 | E12: 0.8253356149 | F12: -1.513315351e-07 | G12: -6.066541158e-09 | I12: ir = 6
A13: 0.7 | B13: 2.013752512 | C13: 2.013752707 | D13: 0.7648421791 | E13: 0.7648421873 | F13: -1.951217459e-07 | G13: -8.167632681e-09 | I13: Star = 1
A14: 0.8 | B14: 2.225540682 | C14: 2.225540928 | D14: 0.6967066988 | E14: 0.6967067093 | F14: -2.464490025e-07 | G14: -1.053415222e-08 | I14: eps = 0.00001
A15: 0.9 | B15: 2.459602805 | C15: 2.459603111 | D15: 0.6216099551 | E15: 0.6216099683 | F15: -3.064143019e-07 | G15: -1.314245412e-08 | I15: dx = 0.1
A16: 1 | B16: 2.718281452 | C16: 2.718281828 | D16: 0.5403022899 | E16: 0.5403023059 | F16: -3.76266859e-07 | G16: -1.596647725e-08 | I16: zz(1) = a.Range("B3")
A17: 1.1 | B17: 3.004165567 | C17: 3.004166024 | D17: 0.4535961024 | E17: 0.4535961214 | F17: -4.574231056e-07 | G17: -1.897800495e-08 | I17: ' počáteční podmínky
A18: 1.2 | B18: 3.320116371 | C18: 3.320116923 | D18: 0.3623577323 | E18: 0.3623577545 | F18: -5.514880477e-07 | G18: -2.214694694e-08 | I18: a.Cells(ir, 1) = x
A19: 1.3 | B19: 3.669296007 | C19: 3.669296668 | D19: 0.2674988032 | E19: 0.2674988286 | F19: -6.602792602e-07 | G19: -2.544164018e-08 | I19: a.Cells(ir, 2) = Y(1)
A20: 1.4 | B20: 4.055199181 | C20: 4.055199967 | D20: 0.1699671141 | E20: 0.1699671429 | F20: -7.858538495e-07 | G20: -2.882916522e-08 | I20: a.Cells(ir, 3) = Exp(x)
A21: 1.5 | B21: 4.48168814 | C21: 4.48168907 | D21: 0.07073716939 | E21: 0.07073720167 | F21: -9.305387287e-07 | G21: -3.227567499e-08 | I21: a.Cells(ir, 4) = Y(2)
A22: 1.6 | B22: 4.953031327 | C22: 4.953032424 | D22: -0.02919955805 | E22: -0.0291995223 | F22: -1.096964624e-06 | G22: -3.574673315e-08 | I22: a.Cells(ir, 5) = Cos(x)
A23: 1.7 | B23: 5.473946104 | C23: 5.473947392 | D23: -0.1288445335 | E23: -0.1288444943 | F23: -1.288104229e-06 | G23: -3.920765801e-08 | I23: ir = ir + 1
A24: 1.8 | B24: 6.049645957 | C24: 6.049647464 | D24: -0.2272021373 | E24: -0.2272020947 | F24: -1.507315049e-06 | G24: -4.262386916e-08 | I24: Y(1) = 1: Y(2) = 1
A25: 1.9 | B25: 6.685892684 | C25: 6.685894442 | D25: -0.3232896128 | E25: -0.3232895669 | F25: -1.758387453e-06 | G25: -4.596123293e-08 | I25: Do ' integrace v termočlánkových bodech
A26: 2 | B26: 7.389054053 | C26: 7.389056099 | D26: -0.4161468857 | E26: -0.4161468365 | F26: =B26-C26 -> -2.045598591e-06 | G26: =D26-E26 -> -4.918640351e-08 | I26: xe = x + dx
I27: RKM 2, x, xe, Y(), eps, Star, zz() ' vlastní integrace
I28: ' Debug.Print "*x,y1,y2: ", x, Y(1); Exp(x), Y(2); Cos(x)
I29: ' x = x + dx ' Nedávat! dělá se automaticky
I30: ' zapiš výsledky do listu
I31: a.Cells(ir, 1) = x
I32: a.Cells(ir, 2) = Y(1)
I33: a.Cells(ir, 3) = Exp(x * zz(1))
I34: a.Cells(ir, 4) = Y(2)
I35: a.Cells(ir, 5) = Cos(x)
I36: ir = ir + 1
I37: Loop While x <= 2
I38: End Sub
I40: Public Sub FKT(ByVal nn, x, Y(), F(), zz())
I41: ' Procedura pravých stran pro integraci - model reaktoru
I42: Dim pom, pp, Cp, Tw, Tw1, q, q1, w, s, it As Integer, i As Integer
I43: Select Case FKTPrep
I44: Case 0:
I45: ' úvodní příklad
I46: F(1) = Y(1) * zz(1)
I47: F(2) = -Sin(x)
I48: Case 1:
I49: ' Strato skok
I50: ro = zz(2) * Exp(-zz(2) * 9.81 * Y(1) / zz(1))
I51: F(1) = -Y(2)
I52: F(2) = 9.81 - zz(5) * ro * Y(2) * Y(2) * zz(4) / zz(3) / 2
I53: zz(9) = ro
I54: Case 2:
I55: ' aplikace....
I56: Case 3:
I57: End Select
I58: End Sub

Sheet IntegraceClass
A1: Integrace pomocí RKM | E1: přes class modul
F2: y1' = a*y1 | G2: y1(0) = 1
A3: a = | B3: 2 | F3: y2' = cos(x) | G3: y2(0) = 1
A5: x | B5: y1 | C5: y1anal | D5: y2 | E5: y2anal | F5: D1 | G5: D2 | I5: Public myNum As New Numer
A6: 0 | C6: 1 | E6: 0 | F6: =B6-C6 -> -1 | G6: =D6-E6 -> 0 | I6: Public Sub IntegraceC()
A7: 0.1 | B7: 0.8187311111 | C7: 0.8187307531 | D7: 0.09983342011 | E7: 0.09983341665 | F7: =B7-C7 -> 3.580331293e-07 | G7: =D7-E7 -> 3.467470019e-09 | I7: ' Integrace přes class modul
A8: 0.2 | B8: 0.6703206323 | C8: 0.670320046 | D8: 0.1986693377 | E8: 0.1986693308 | F8: 5.862655952e-07 | G8: 6.900294225e-09 | I8: ' Podprogramy RKM i FKT jsou součástí class modulu
A9: 0.3 | B9: 0.5488123561 | C9: 0.5488116361 | D9: 0.2955202169 | E9: 0.2955202067 | F9: 7.199906659e-07 | G9: 1.026417296e-08 | I9: ' zz() parametry modelu
A10: 0.4 | B10: 0.4493297501 | C10: 0.4493289641 | D10: 0.3894183558 | E10: 0.3894183423 | F10: 7.859715053e-07 | G10: 1.352549545e-08 | I10: Dim x As Double, xe As Double, dx As Double
A11: 0.5 | B11: 0.3678802455 | C11: 0.3678794412 | D11: 0.4794255553 | E11: 0.4794255386 | F11: 8.043739789e-07 | G11: 1.66516757e-08 | I11: Dim Y(10), zz(10)
A12: 0.6 | B12: 0.3011950022 | C12: 0.3011942119 | D12: 0.564642493 | E12: 0.5646424734 | F12: 7.902790291e-07 | G12: 1.961147789e-08 | I12: Set a = Worksheets("IntegraceClass")
A13: 0.7 | B13: 0.2465977188 | C13: 0.2465969639 | D13: 0.6442177096 | E13: 0.6442176872 | F13: 7.548635338e-07 | G13: 2.23753287e-08 | I13: ir = 6
A14: 0.8 | B14: 0.2018972243 | C14: 0.201896518 | D14: 0.7173561158 | E14: 0.7173560909 | F14: 7.063201424e-07 | G14: 2.491561268e-08 | I14: Star = 1
A15: 0.9 | B15: 0.1652995388 | C15: 0.1652988882 | D15: 0.7833269368 | E15: 0.7833269096 | F15: 6.505719171e-07 | G15: 2.720694803e-08 | I15: eps = 0.00001
A16: 1 | B16: 0.1353358751 | C16: 0.1353352832 | D16: 0.841471014 | E16: 0.8414709848 | F16: 5.918259467e-07 | G16: 2.92264406e-08 | I16: dx = 0.1
A17: 1.1 | B17: 0.1108036914 | C17: 0.1108031584 | D17: 0.891207391 | E17: 0.8912073601 | F17: 5.330008299e-07 | G17: 3.09539121e-08 | I17: zz(1) = a.Range("B3")
A18: 1.2 | B18: 0.09071842934 | C18: 0.09071795329 | D18: 0.9320391183 | E18: 0.932039086 | F18: 4.760555632e-07 | G18: 3.237210244e-08 | I18: ' počáteční podmínky
A19: 1.3 | B19: 0.07427400046 | C19: 0.07427357821 | D19: 0.9635582189 | E19: 0.9635581854 | F19: 4.222415329e-07 | G19: 3.346684141e-08 | I19: a.Cells(ir, 1) = x
A20: 1.4 | B20: 0.06081043492 | C20: 0.06081006263 | D20: 0.9854497642 | E20: 0.98544973 | F20: 3.72294681e-07 | G20: 3.422719075e-08 | I20: a.Cells(ir, 2) = Y(1)
A21: 1.5 | B21: 0.04978739495 | C21: 0.04978706837 | D21: 0.9974950212 | E21: 0.9974949866 | F21: 3.265812549e-07 | G21: 3.464555343e-08 | I21: a.Cells(ir, 3) = Exp(x)
A22: 1.6 | B22: 0.04076248919 | C22: 0.04076220398 | D22: 0.9995736378 | E22: 0.999573603 | F22: 2.852076536e-07 | G22: 3.471774912e-08 | I22: a.Cells(ir, 4) = Y(2)
A23: 1.7 | B23: 0.03337351806 | C23: 0.03337326996 | D23: 0.9916648449 | E23: 0.9916648105 | F23: 2.481025985e-07 | G23: 3.444305652e-08 | I23: a.Cells(ir, 5) = Sin(x)
A24: 1.8 | B24: 0.02732393753 | C24: 0.02732372245 | D24: 0.9738476647 | E24: 0.9738476309 | F24: 2.150780525e-07 | G24: 3.382422031e-08 | I24: ir = ir + 1
A25: 1.9 | B25: 0.02237095773 | C25: 0.02237077186 | D25: 0.9463001206 | E25: 0.9463000877 | F25: 1.858738907e-07 | G25: 3.286742367e-08 | I25: Y(1) = 1: Y(2) = 0
A26: 2 | B26: 0.01831579908 | C26: 0.01831563889 | D26: 0.9092974584 | E26: 0.9092974268 | F26: =B26-C26 -> 1.601902145e-07 | G26: =D26-E26 -> 3.15822265e-08 | I26: Do ' integrace v termočlánkových bodech
I27: xe = x + dx
I28: myNum.RKM 2, x, xe, Y(), eps, Star, zz() ' vlastní integrace
I29: ' Debug.Print "x,y1,y2: ", x, Y(1); Exp(-x), Y(2); Sin(x)
I30: ' x = x + dx ' Nedávat! dělá se automaticky
I31: ' zapiš výsledky do listu
I32: a.Cells(ir, 1) = x
I33: a.Cells(ir, 2) = Y(1)
I34: a.Cells(ir, 3) = Exp(-x * zz(1))
I35: a.Cells(ir, 4) = Y(2)
I36: a.Cells(ir, 5) = Sin(x)
I37: ir = ir + 1
I38: Loop While x <= 2
I39: End Sub
I41: Public Sub FKT(ByVal nn, x, Y(), F(), zz())
I42: ' Procedura pravých stran pro integraci - model reaktoru
I43: Dim pom, pp, Cp, Tw, Tw1, q, q1, w, s, it As Integer, i As Integer
I44: Static Alfaout
I45: F(1) = -Y(1) * zz(1)
I46: F(2) = Cos(x)
I47: End Sub

Sheet Minimalizace
A1: Minimalizace funkce | J1: Pokusy:
C2: Řešení | J2: x | K2: y | L2: z | M2: MSE | Q2: Public Sub Minimalizace()
A3: x1(0)= | B3: 0.4 | C3: 0 | I3: 1 | J3: 0 | K3: 0.5 | L3: 0 | M3: 2.5 | Q3: ' Spuštění minimalizace
A4: x2(0)= | B4: -0.7 | C4: -1 | I4: 2 | J4: 0.5 | K4: 0.8 | L4: -0.5 | M4: 4.49 | Q4: Dim i As Integer, FF As Double, eps As Double, A, c
A5: x2(0)= | B5: 0.25 | C5: 0.5 | D5: počet rovnic | E5: 3 | F5: od ř. | G5: 1 | I5: 3 | J5: 0.3 | K5: 0.1 | L5: 0.8 | M5: 1.39 | Q5: Set A = Worksheets("Minimalizace")
I6: 4 | J6: 1 | K6: -0.7 | L6: 0.3 | M6: =MSE(J6,K6,L6) -> 1.58 | Q6: c = A.Range("B5")
A7: Metoda | B7: f | C7: x | D7: y | E7: z | F7: iter | I7: 5 | J7: -0.38 | K7: 0.25 | L7: 0.1 | M7: 0.2169 | Q7: B(1) = A.Range("B3")
A8: Rosenbrock | B8: 5.064067623e-11 | C8: 6.883790801e-06 | D8: -0.9999997965 | E8: 0.5000016586 | F8: 321 | I8: 6 | J8: 0.04 | K8: -0.1 | L8: 0.3 | M8: 0.1016 | Q8: B(2) = A.Range("B4")
A9: Nelder-Mead | B9: 7.648049041e-08 | C9: 2.834796108e-05 | D9: -1.000046054 | E9: 0.4999311153 | F9: 67 | I9: 7 | J9: 0.15 | K9: 0.4 | L9: 0.55 | M9: 0.485 | Q9: eps = 0.00001
I10: 8 | J10: 0.28 | K10: -0.6 | L10: 0.27 | M10: 0.5113 | Q10: FminPrep = 0 ' nastavení přepínače úlohy aplikace
I11: 9 | J11: 0.15 | K11: 0.4 | L11: -0.25 | M11: 0.245 | Q11: FF = Fmin(2, B(), eps)
I12: 10 | J12: -0.39 | K12: 0.8 | L12: -0.1 | M12: 0.8021 | Q12: ' zapiš výsledky
A13: Příklad: | B13: f = [(b1-2)2+(b2-5)2] | I13: 11 | J13: 0.3 | K13: 0.2 | L13: 0.34 | M13: 0.2456 | Q13: A.Cells(8, 2) = FF
A14: Odhady: | B14: 1 | C14: 2 | I14: 12 | J14: -0.15 | K14: -0.17 | L14: -0.47 | M14: 0.2723 | Q14: A.Cells(8, 3) = B(1)
A15: Metoda | B15: f | C15: b1 | D15: b2 | E15: iter | I15: 13 | J15: 0.24 | K15: 0.36 | L15: 0.3 | M15: 0.2772 | Q15: A.Cells(8, 4) = B(2)
A16: Rosenbrock | B16: 4.066976666e-11 | C16: 1.999999706 | D16: 5.000006371 | E16: 80 | I16: 14 | J16: -0.05 | K16: 0.24 | L16: -0.14 | M16: 0.0797 | Q16: A.Cells(8, 5) = nIter
A17: Nelder-Mead | B17: 4.450259394e-06 | C17: 2.00095269 | D17: 5.000196439 | E17: 26 | I17: 15 | J17: 0.67 | K17: 0.2 | L17: 0.2 | M17: 0.5289 | Q17: B(1) = A.Range("B3")
Q18: B(2) = A.Range("B4")
Q19: FF = Fmin1(2, B(), eps)
Q20: ' zapiš výsledky
Q21: A.Cells(9, 2) = FF
Q22: A.Cells(9, 3) = B(1)
Q23: A.Cells(9, 4) = B(2)
Q24: A.Cells(9, 5) = nIter
Q25: End Sub
Q27: Function F(B() As Double) As Double
Q28: ' Minimalizovaná funkce
Q29: Dim s As Double, YV As Double, i As Integer, j As Integer, xexp As Double
Q30: Select Case FminPrep
Q31: Case 0:
Q32: ' úvodní příklad
Q33: F = (B(1) - 2) ^ 2 + (B(2) - 5) ^ 2
Q34: Case 1:
Q35: ' aplikace....
Q36: Case 2:
Q37: ' aplikace....
Q38: End Select
Q39: End Function

Sheet Gauss
A1: Použití funkce GAUSS a maticové násobení z šablony NUMER.XLTM
A6: volání :
A8: Public Function GAUSS(A, N, NCOL)
A10: A) volání s jednou pravou stranou
A12: A(i,j) | C12: b(i) | D12: řešení | I12: A(i,j) | K12: b(i) | L12: řešení
A13: 1 | B13: 3 | C13: 5 | D13: =GAUSS(A13:C14,C15,C16) -> 0.5 | I13: 2 | J13: 3 | K13: 5 | L13: =GAUSS(I13:K14) -> 4
A14: -1 | B14: 1 | C14: 1 | D14: 1.5 | I14: 1 | J14: 1 | K14: 3 | L14: -1
A15: počet rovnic : | C15: 2
A16: počet pravých stran : | C16: 1
A18: B) volání s více pravými stranami (a bez volitelných parametrů) | I18: Public Function MatNas(A, B)
E19: inverzní matice
A20: A(i,j) | C20: b(i) | E20: řešení | J20: A | N20: B | Q20: C
A21: 1 | B21: 1 | C21: 1 | D21: 0 | E21: =GAUSS(A21:D22) -> 0.5 | F21: -0.5 | I21: 1 | J21: 3 | L21: 2 | M21: 1 | N21: 3 | P21: =MatNas(I21:J23,L21:N22) -> 5 | Q21: 1 | R21: 0
A22: -1 | B22: 1 | C22: 0 | D22: 1 | E22: 0.5 | F22: 0.5 | I22: 2 | J22: -1 | L22: 1 | M22: 0 | N22: -1 | P22: 3 | Q22: 2 | R22: 7
A23: počet rovnic : | C23: 2 | I23: 4 | J23: 2 | P23: 10 | Q23: 4 | R23: 10
A24: počet pravých stran : | C24: 2
A26: C) volání GAUSST pro přeurčenou soustavu (a bez volitelných parametrů) | I26: 1 | J26: 2 | K26: 4 | M26: 2 | N26: 1 | P26: =MatNas(I26:K27,M26:N28) -> 16 | Q26: -3
A27: Public Function GAUSST(A, N, Nrov) | F27: N - počet neznámých | I27: 3 | J27: -1 | K27: 2 | M27: 1 | N27: 0 | P27: 11 | Q27: 1
F28: Nrov - počet rovnic >= N | M28: 3 | N28: -1
A29: A(i,j) | D29: b(i) | E29: řešení | F29: N, Nrov Optional
A30: 1 | B30: 2 | C30: 1 | D30: 3 | E30: =GAUSST(A30:D34) -> 0.5552542589 | P30: Inverzní matice
A31: 2 | B31: 5 | C31: -4 | D31: 2 | E31: 0.4497543546 | I31: 1 | J31: 2 | K31: 1 | L31: 1 | M31: 0 | N31: 0 | P31: =GAUSS(I31:N33) -> 0.3333333333 | Q31: 0 | R31: -0.3333333333 | T31: =MatNas(I31:K33,P31:R33) -> 1 | U31: 0 | V31: 0
A32: -2 | B32: 2 | C32: 1 | D32: 6 | E32: 1.164231481 | I32: 2 | J32: 5 | K32: -4 | L32: 0 | M32: 1 | N32: 0 | P32: 0.1538461538 | Q32: 0.07692307692 | R32: 0.1538461538 | T32: 0 | U32: 1 | V32: 0
A33: 2 | B33: -5 | C33: 3 | D33: 7 | I33: -2 | J33: 2 | K33: 1 | L33: 0 | M33: 0 | N33: 1 | P33: 0.358974359 | Q33: -0.1538461538 | R33: 0.02564102564 | T33: 0 | U33: 0 | V33: 1
A34: 3 | B34: 2 | C34: 3 | D34: 4
A35: počet neznámých | C35: 3
A36: počet rovnic | C36: 5

Sheet Newton
A1: Použití funkce Newton z šablony NUMER.XLTM
A3: funkce je vektorová - vkládá se Ctrl+Shift+Enter
A6: volání :
A7: Public Function Newton(N; Nprom; NUnknown; X; IPOM; Eps; Alam; Niter; NewtPrep; Format; par1; par2;...)
A14: 1) "vertikální" volání :
E15: NewtPrep | I15: NewtPrep
A16: x0(i) | B16: ipom(i) | C16: řešení x(i) | D16: residua f(i) | E16: 0 | I16: 1
A17: 1 | B17: 1 | C17: =Newton(7,5,5,A17:A21,B17:B21,0.0000005,0.5,500,0,"v",A22,B22:B23) -> 2.00956211 | D17: 0.005700574106 | E17: 0.0008664491418 | G17: =Newton(3,3,3,A17:A21,B17:B21,0.0000005,0.5,500,$I$16,"v",G21) -> 0.8548606412 | H17: 7.561202153e-08 | I17: 5.721983722e-15
A18: 1 | B18: 2 | C18: 1.972142154 | D18: 4.230132511e-07 | E18: 0 | G18: 0.7247207984 | H18: 5.222666744e-11 | I18: 0
A19: 1 | B19: 3 | C19: 1.995218544 | D19: -0.02307719078 | E19: Iter = 9 | G19: 1.32060329 | H19: 2.191619136e-09 | I19: Iter = 6
A20: 1 | B20: 4 | C20: 1.93251198 | D20: 2.437325994e-07 | E20: O.K. | G20: 0 | H20: 0 | I20: 0
A21: 1 | B21: 5 | C21: 2.01051747 | D21: 1.652247377e-06 | G21: 0.1
A22: 0 | B22: 0 | C22: 0 | D22: -4.464032681e-05
B23: 0 | C23: 0 | D23: 0.01736069891
A32: 2) "horizontální " volání : | E32: par2(1-2) | F32: 1 | G32: 0.5
A34: par1 | B34: x(1) | C34: x(2) | D34: x(3) | E34: x(4) | F34: x(5) | G34: f(1) | H34: f(2) | I34: f(3) | J34: f(4) | K34: f(5) | L34: f(6) | M34: f(7) | N34: sumres | O34: ID | P34: iter
A35: 0 | B35: =Newton(7,5,5,$A$17:$A$21,$B$17:$B$21,0.0000005,0.05,500,0,"h",A35,$F$32:$G$32) -> 2.050541155 | C35: 1.749723237 | D35: 1.984205907 | E35: 1.54217714 | F35: 2.079311014 | G35: -0.06135182839 | H35: -8.909700198e-05 | I35: 0.2844702982 | J35: -3.840314474e-05 | K35: -0.0007597160245 | L35: 0.02776985948 | M35: -0.2160708568 | N35: 0.1321457642 | O35: 0 | P35: Iter = 36
A36: 1 | B36: =Newton(7,5,5,$A$17:$A$21,$B$17:$B$21,0.0000005,0.05,500,0,"h",A36,$F$32:$G$32) -> 1.787883084 | C36: 1.76498434 | D36: 2.081307984 | E36: 2.787694334 | F36: 2.067784583 | G36: 0.04281824539 | H36: -0.0007656401566 | I36: 0.1341754081 | J36: -0.000182170883 | K36: -0.007763936422 | L36: 0.2789014989 | M36: -0.1037076756 | N36: 0.1084386684 | O36: 0 | P36: Iter = 38
A37: 2 | B37: =Newton(7,5,5,$A$17:$A$21,$B$17:$B$21,0.0000005,0.05,500,0,"h",A37,$F$32:$G$32) -> 1.496296719 | C37: 1.828269017 | D37: 2.129814383 | E37: 3.189867869 | F37: 2.041486252 | G37: 0.1969872711 | H37: -0.001519175326 | I37: -0.0456198809 | J37: -0.0003158930604 | K37: -0.01574306135 | L37: 0.5441895335 | M37: 0.008083400238 | N37: 0.3373429999 | O37: 0 | P37: Iter = 41
A38: 3 | B38: =Newton(7,5,5,$A$17:$A$21,$B$17:$B$21,0.0000005,0.05,500,0,"h",A38,$F$32:$G$32) -> 1.191719851 | C38: 1.87874505 | D38: 2.155441374 | E38: 3.349523787 | F38: 2.01653193 | G38: 0.4543826286 | H38: -0.002402085944 | I38: -0.274093724 | J38: -0.000475682037 | K38: -0.02472816943 | L38: 0.8238120784 | M38: 0.08418642473 | N38: 0.967962116 | O38: 0 | P38: Iter = 43
A40: 3) zkrácené formy volání :
A42: par(1) | B42: x(1) | C42: x(2) | D42: x(3) | E42: x(4) | F42: x(5)
A43: 1 | B43: =Newton(7,5,5,$A$17:$A$21,$B$17:$B$21,0.0005,0.5,500,0,"h",A43,$F$32:$G$32) -> 1.787894863 | C43: 1.764949756 | D43: 2.081304955 | E43: 2.787672188 | F43: 2.067795705 | G43: f(1) | H43: f(2) | I43: f(3) | J43: f(4) | K43: f(5) | L43: f(6) | M43: f(7)
A44: 1 | B44: =Newton(7,5,5,$A$17:$A$21,$B$17:$B$21,0.0000005,0.05,500,0,"h",A44,$F$32:$G$32) -> 1.787883084 | C44: 1.76498434 | D44: 2.081307984 | E44: 2.787694334 | F44: 2.067784583 | G44: 0.04281824539 | H44: -0.0007656401566 | I44: 0.1341754081 | J44: -0.000182170883 | K44: -0.007763936422 | L44: 0.2789014989 | M44: -0.1037076756
A46: NewtPrep | B46: 2
B47: x(1) | C47: x(2) | D47: f(1) | E47: f(2) | F47: sumres | G47: ID | H47: iter
B48: =Newton(2,2,2,A17:A21,B17:B21,0.0000005,0.5,500,2,"h") -> 0.9999999998 | C48: 2 | D48: 1.722722409e-09 | E48: 0 | F48: 2.967772499e-18 | G48: 0 | H48: Iter = 6
A50: Petr:
A51: IPOM | B51: Odhady | C51: Řešení | D51: Reziduum | E51: Sumres | F51: xodhad | G51: =NonEQ(3,F52:F54,0.0005,0.5,4,0) -> xNewton | H51: rezid | J51: xRosen | K51: xNelder | L51: rezid
A52: 1 | B52: 0.4 | C52: =Newton(3,3,3,$B$52:$B$54,$A$52:$A$54,0.0005,0.5,500,4,"v") -> 9.229153001e-09 | D52: -1.995887278e-08 | E52: 1.195069808e-15 | F52: 0.4 | G52: -2.014666786e-06 | H52: 4.356904424e-06 | I52: 5.694784848e-11 | J52: -1.836577186e-07 | K52: -9.670095479e-05 | L52: 3.001007302e-12
A53: 2 | B53: -0.7 | C53: -0.9999999946 | D53: -1.995887278e-08 | E53: 0 | F53: -0.5 | G53: -1.000001174 | H53: 4.356904424e-06 | I53: Rit=339 | J53: -1.000000344 | K53: -0.9999836465 | L53: 3.796968539e-07
A54: 3 | B54: 1 | C54: 0.5000000043 | D54: -1.995887278e-08 | E54: Iter = 14 | F54: 0.7 | G54: 0.4999990579 | H54: 4.356904424e-06 | I54: Iter = 13 | J54: 0.4999999789 | K54: 0.499841814 | L54: NMit = 57
A56: IPOM | B56: Odhady | C56: Řešení | D56: Reziduum | E56: Sumres
A57: 1 | B57: 0.8 | C57: =Newton(3,3,3,$B$57:$B$59,$A$52:$A$54,0.0005,0.5,500,4,"v") -> 1.696435138e-06 | D57: -3.668689058e-06 | E57: 4.037783822e-11
A58: 2 | B58: -2 | C58: -0.9999990114 | D58: -3.668689059e-06 | E58: 0
A59: 3 | B59: -0.2 | C59: 0.5000007933 | D59: -3.668689058e-06 | E59: Iter = 19
A61: IPOM | B61: Odhady | C61: Řešení | D61: Reziduum | E61: Sumres
A62: 1 | B62: 1 | C62: 1 | D62: 1 | E62: 1
A63: 2 | B63: 1 | C63: 1 | D63: 1 | E63: 1
A64: 3 | B64: 1 | C64: 1 | D64: 1 | E64: 1

Sheet RKMm
A1: Použití RKMm - řešení počátečního problému ODE maticová fce
A5: volání :
A6: Public Function RKMm(nEqua, x0, XE, y0, delta, start, FKTmPrep, par1, ..., par5)
A15: start | B15: 1 | C15: FKTmPrep: | D15: 0
A16: delta | B16: 1e-08
A17: par | B17: 2
A19: x | B19: y1 | C19: y2 | D19: krok | E19: exp(x) | F19: exp(par*x) | G19: dy1 % | H19: dy2 %
A20: 0 | B20: 1 | C20: 1 | D20: - | E20: =EXP(A20) -> 1 | F20: =EXP(2*A20) -> 1 | G20: =(B20-E20)/E20*100 -> 0 | H20: 0
A21: 4.5 | B21: =RKMm(2, A20, A21,B20:C20,$B$16, $B$15, $D$15, $B$17) -> 90.01713114 | C21: 8103.083453 | D21: 0.002004164938 | E21: =EXP(A21*$B$17) -> 8103.083928 | F21: =EXP($B$17*A21) -> 8103.083928 | G21: -98.88910035 | H21: -5.854078121e-06
A22: 0 | B22: =RKMm(2, A21, A22,B21:C21,$B$16, $B$15, $D$15, $B$17) -> 0.9999999997 | C22: 0.9999999908 | D22: -0.02574177178 | E22: =EXP(A22*$B$17) -> 1 | F22: =EXP($B$17*A22) -> 1 | G22: -2.874419591e-08 | H22: -9.187943517e-07
A23: 1 | B23: =RKMm(2, A22, A23,B22:C22,$B$16, $B$15, $D$15, $B$17) -> 2.718281824 | C23: 7.389055685 | D23: 0.005895035443 | E23: 7.389056099 | F23: 7.389056099 | G23: -63.21205595 | H23: -5.607153513e-06
A24: 1.5 | B24: =RKMm(2, A23, A24,B23:C23,$B$16, $B$15, $D$15, $B$17) -> 4.481689062 | C24: 20.08553567 | D24: 0.01569314328 | E24: 20.08553692 | F24: 20.08553692 | G24: -77.68698403 | H24: -6.238933564e-06
A25: 2 | B25: =RKMm(2, A24, A25,B24:C24,$B$16, $B$15, $D$15, $B$17) -> 7.389056084 | C25: 54.59814647 | D25: 0.01075602985 | E25: 54.59815003 | F25: 54.59815003 | G25: -86.4664717 | H25: -6.520846836e-06
A26: 3 | B26: =RKMm(2, A25, A26,B25:C25,$B$16, $B$15, $D$15, $B$17) -> 20.08553688 | C26: 403.4287664 | D26: 0.005214254268 | E26: 403.4287935 | F26: 403.4287935 | G26: -95.02129317 | H26: -6.704548499e-06
A27: 4 | B27: =RKMm(2, A26, A27,B26:C26,$B$16, $B$15, $D$15, $B$17) -> 54.59814992 | C27: 2980.957786 | D27: 0.002956506916 | E27: 2980.957987 | F27: 2980.957987 | G27: -98.16843611 | H27: -6.741258419e-06
A28: 5 | B28: =RKMm(2, A27, A28,B27:C27,$B$16, $B$15, $D$15, $B$17) -> 148.4131588 | C28: 22026.46431 | D28: 0.005045612937 | E28: 22026.46579 | F28: 22026.46579 | G28: -99.3262053 | H28: -6.748623028e-06
A29: 6 | B29: =RKMm(2, A28, A29,B28:C28,$B$16, $B$15, $D$15, $B$17) -> 403.4287926 | C29: 162754.7804 | D29: 0.003260496166 | E29: 162754.7914 | F29: 162754.7914 | G29: -99.75212478 | H29: -6.75010301e-06
A30: 0 | B30: =RKMm(2, A29, A30,B29:C29,$B$16, $B$15, $D$15, $B$17) -> 0.9999999994 | C30: 0.999999982 | D30: -0.02039600988 | E30: 1 | F30: =EXP(2*A30) -> 1 | G30: -5.645052203e-08 | H30: -1.804405436e-06
A31: -8 | B31: =RKMm(2, A30, A31,B30:C30,$B$16, $B$15, $D$15, $B$17) -> 0.0003354698274 | C31: 1.126030106e-07 | D31: -0.07932877895 | E31: 1.125351747e-07 | F31: =EXP($B$17*A31) -> 1.125351747e-07 | G31: 298002.1963 | H31: 0.06027967612

Sheet RKMs
A1: Použití RKMs - integrace ODE po oblouku
A5: volání :
A6: Public Function RKMs(Nrov, x0, XE, y0, DELTA, START, FKTsPrep, Nout, par1, ..., par5)
A15: start | B15: 1 | C15: FKTsPrep: | D15: 0
A16: delta | B16: 5e-05
A17: par | B17: 1 | C17: 2.01
A19: x | B19: y1 | C19: y2 | D19: y3 = x | E19: oblouk s | F19: int. krok v s | G19: dy1 | H19: dy2 | I19: out1 | J19: out2 | K19: exp(p1*x) | L19: exp(p2*x)
A20: 0 | B20: 1 | C20: 1 | D20: 0 | E20: 0 | F20: =EXP(2*A20) -> 1 | K20: =EXP($B$17*$A20) -> 1 | L20: =EXP($C$17*$A20) -> 1
A21: 0.1 | B21: =RKMs(2,A20,A21,B20:E20,$B$16,1,$D$15,1,$B$17:$C$17) -> 1.105169188 | C21: 1.222620902 | D21: 0.09999849326 | E21: 0.2658041988 | F21: 0.3722903374 | G21: 0.3845247865 | H21: 0.8550341188 | I21: 0.3479329595 | J21: 1.239558905 | K21: =EXP($B$17*$A21) -> 1.105170918 | L21: =EXP($C$17*$A21) -> 1.222624772
A22: 0.2 | B22: =RKMs(2,A21,A22,B21:E21,$B$16,1,$D$15,1,$B$17:$C$17) -> 1.22139704 | C22: 1.494797173 | D22: 0.1999969342 | E22: 0.5782520685 | F22: 0.4059918681 | G22: 0.3598718418 | H22: 0.8852569168 | I22: 0.2946395235 | J22: 1.245128759 | K22: =EXP($B$17*$A22) -> 1.221402758 | L22: =EXP($C$17*$A22) -> 1.494811333
A23: 0.3 | B23: =RKMs(2,A22,A23,B22:E22,$B$16,0,$D$15,1,$B$17:$C$17) -> 1.349852068 | C23: 1.827574535 | D23: 0.2999998707 | E23: 0.9487666308 | F23: 0.4059918681 | G23: 0.334177592 | H23: 0.9094154004 | I23: 0.2475660851 | J23: 1.243592992 | K23: 1.349858808 | L23: 1.827593365
A24: 0.4 | B24: =RKMs(2,A23,A24,B23:E23,$B$16,0,$D$15,1,$B$17:$C$17) -> 1.491816722 | C24: 2.234435713 | D24: 0.3999998507 | E24: 1.391184897 | F24: 0.4059918681 | G24: 0.3084179787 | H24: 0.9285133177 | I24: 0.206739859 | J24: 1.236931296 | K24: 1.491824698 | L24: 2.23446092
A25: 0.5 | B25: =RKMs(2,A24,A25,B24:E24,$B$16,0,$D$15,1,$B$17:$C$17) -> 1.648711678 | C25: 2.731873277 | D25: 0.4999996787 | E25: 1.92232408 | F25: 0.6115223538 | G25: 0.2832936284 | H25: 0.9435147635 | I25: 0.1718272711 | J25: 1.226808392 | K25: 1.648721271 | L25: 2.731907273
A26: 0.6 | B26: =RKMs(2,A25,A26,B25:E25,$B$16,0,$D$15,1,$B$17:$C$17) -> 1.822107451 | C26: 3.340051986 | D26: 0.5999998304 | E26: 2.562637792 | F26: 0.6115223538 | G26: 0.2592681181 | H26: 0.9552662083 | I26: 0.1422902464 | J26: 1.214534326 | K26: 1.8221188 | L26: 3.340097506
A27: 0.7 | B27: =RKMs(2,A26,A27,B26:E26,$B$16,0,$D$15,1,$B$17:$C$17) -> 2.013739225 | C27: 4.08362518 | D27: 0.6999997382 | E27: 3.337030654 | F27: 0.8603662277 | G27: 0.2366194761 | H27: 0.9644710345 | I27: 0.1175025411 | J27: 1.201090511 | K27: 2.013752707 | L27: 4.083685951
A28: 0.8 | B28: =RKMs(2,A27,A28,B27:E27,$B$16,0,$D$15,1,$B$17:$C$17) -> 2.225525037 | C28: 4.992734766 | D28: 0.7999998174 | E28: 4.275860478 | F28: 0.8603662277 | G28: 0.2154900953 | H28: 0.9716936874 | I28: 0.09682663266 | J28: 1.187183783 | K28: 2.225540928 | L28: =EXP($C$17*$A28) -> 4.992815604
A29: 0.9 | B29: =RKMs(2,A28,A29,B28:E28,$B$16,0,$D$15,1,$B$17:$C$17) -> 2.459584211 | C29: 6.104232763 | D29: 0.8999996364 | E29: 5.416162285 | F29: 1.224043358 | G29: 0.1959281549 | H29: 0.9773774056 | I29: 0.07965905539 | J29: 1.173305561 | K29: 2.459603111 | L29: =EXP($C$17*$A29) -> 6.104340039
A30: 1 | B30: =RKMs(2,A29,A30,B29:E29,$B$16,0,$D$15,1,$B$17:$C$17) -> 2.718259673 | C30: 7.46317586 | D30: 0.9999998092 | E30: 6.803147085 | F30: 1.224043358 | G30: 0.1779194224 | H30: 0.9818658398 | I30: 0.06545343119 | J30: 1.159785262 | K30: 2.718281828 | L30: =EXP($C$17*$A30) -> 7.463317347

Sheet Regrese
A1: Nelineární regrese s vložením rovnice do kódu | AH1: 1
AH2: Bez vah
A3: Regresní rovnice: | C3: y = a1 +a2*x +b3*x*x | O3: regfun=b(1)+b(2)*xReg(i)+b(3)*xReg(i)*xReg(i) | AH3: Zadané váhy
A4: (např. parabola: regfun=b(1)+b(2)*xReg(i)+b(3)*xReg(i)*xReg(i) nebo y = a1 +a2*x +b3*x*x ) | O4: regfun=b(1)+b(2)*xReg(i)+b(3)*exp(xReg(i)) | AH4: Váhy 1/Abs(y)
A5: Odhady parametrů: | C5: 0 | D5: 0.5 | E5: 0.04 | O5: y = a1 +a2*x +b3*x*x | R5: y = a1 +a2*Exp(-a3*x) | AH5: Váhy 1/(Abs(y))n
A6: Počet parametrů: | C6: 3 | E6: Počet bodů: | G6: =COUNT(B9:B50) -> 15 | M6: Kontrolovat počet koeficinetů? | P6: ano | R6: Váhy dat:
A7: Hodnota cílové funkce: | D7: 77.00839521 | G7: Znovu s dosaženými koef.? | J7: ne | L7: i opakovaně | O7: nvah | P7: 0.2
A8: váhy | B8: x | C8: y | D8: yvypR | E8: yparab | F8: yvypNM | G8: Výsledky | I8: f | J8: iter | K8: b(1) | L8: b(2) | M8: b(3)
B9: 1 | C9: 0 | D9: 4.260539751 | E9: =$C$5+$D$5*B9+$E$5*B9*B9 -> 0.54 | F9: 2.314063859 | G9: Rosenbrock
B10: 2 | C10: 9 | D10: 8.614162504 | E10: =$C$5+$D$5*B10+$E$5*B10*B10 -> 1.16 | F10: 7.291767356 | G10: Nelder-Mead | R10: =D10-D9 -> 4.353622753 | T10: =F10-F9 -> 4.977703497
B11: 3 | C11: 13 | D11: 14.00175204 | E11: 1.86 | F11: 13.21902104 | R11: =D11-D10 -> 5.387589533 | T11: =F11-F10 -> 5.927253681
B12: 4 | C12: 23 | D12: 20.42330835 | E12: 2.64 | F12: 20.0958249 | R12: 6.421556314 | T12: 6.876803866
B13: 5 | C13: 29 | D13: 27.87883145 | E13: 3.5 | F13: 27.92217895 | R13: 7.455523094 | T13: 7.82635405
B14: 6 | C14: 34 | D14: 36.36832132 | E14: 4.44 | F14: 36.69808319 | R14: 8.489489874 | T14: 8.775904235
B15: 7 | C15: 48 | D15: 45.89177797 | E15: 5.46 | F15: 46.42353761 | R15: 9.523456655 | T15: 9.725454419
B16: 8 | C16: 54 | D16: 56.44920141 | E16: 6.56 | F16: 57.09854221 | R16: 10.55742344 | T16: 10.6750046
B17: 9 | C17: 70 | D17: 68.04059162 | E17: 7.74 | F17: 68.723097 | R17: 11.59139022 | T17: 11.62455479
B18: 10 | C18: 74 | D18: 80.66594862 | E18: 9 | F18: 81.29720197 | R18: 12.625357 | T18: 12.57410497
B19: 11 | C19: 105 | D19: 94.3252724 | E19: 10.34 | F19: 94.82085713 | R19: 13.65932378 | T19: 13.52365516
B20: 12 | C20: 109 | D20: 109.018563 | E20: 11.76 | F20: 109.2940625 | R20: 14.69329056 | T20: 14.47320534
B21: 13 | C21: 120 | D21: 124.7458203 | E21: 13.26 | F21: 124.716818 | R21: 15.72725734 | T21: 15.42275553
B22: 14 | C22: 143 | D22: 141.5070444 | E22: 14.84 | F22: 141.0891237 | R22: 16.76122412 | T22: 16.37230571
B23: 15 | C23: 158.41 | D23: 159.3022353 | E23: 16.5 | F23: 158.4109796 | R23: 17.7951909 | T23: 17.3218559

Sheet Strato
A1: Pád parašutisty ve stratosféře
A2: Skok z (m) | B2: 39000
A3: p0 (Pa) | B3: 101325 | D3: m (kg) | E3: 85 | G3: cx | H3: 0.56 | J3: hustota s výškou | L3: r(h) =r0*exp[-r0*g*h/p0]
A4: r0 (kg/m3) | B4: 1.206 | D4: S (m2) | E4: =1.8*0.45 -> 0.81 | G4: Dt (s) | H4: 1 | J4: brzdící síla | L4: cx*1/2*r(h)*v2*S | N4: cx - koef. odporu; S příčný povrch tělesa; v rychlost
A5: =INDIRECT("A"&COUNT(A7:A9999)+6) -> 291 | B5: Max: | C5: =MAX(C7:C9999) -> 313.9701797 | D5: =MAX(D7:D9999) -> 1130.292647
A6: Čas (s) | B6: Výška (m) | C6: Rychlost (m/s) | D6: v (km/h) | E6: r(h) (kg/m3) | J6: dif.rov.pro rychlost | L6: dv/dt = g -cx*1/2*r(h)*v2*S/m | O6: v(0) = 0
A7: 0 | B7: 39000 | C7: 0 | D7: =C7*3600/1000 -> 0 | E7: =B4*EXP(-B4*9.81*B7/B3) -> 0.01269699673
A8: 1 | B8: 38995.09527 | C8: 9.808912989 | D8: =C8*3600/1000 -> 35.31208676 | E8: 0.01270427017
A9: 2 | B9: 38980.38435 | C9: 19.61129843 | D9: =C9*3600/1000 -> 70.60067434 | E9: 0.01272611066
A10: 3 | B10: 38955.87704 | C10: 29.40060131 | D10: 105.8421647 | E10: 0.01276257872
A11: 4 | B11: 38921.58971 | C11: 39.17021179 | D11: 141.0127624 | E11: 0.01281377535
A12: 5 | B12: 38877.54541 | C12: 48.91343795 | D12: 176.0883766 | E12: 0.01287984223
A13: 6 | B13: 38823.77389 | C13: 58.62347878 | D13: 211.0445236 | E13: 0.01296096197
A14: 7 | B14: 38760.31182 | C14: 68.29339748 | D14: 245.8562309 | E14: 0.01305735846
A15: 8 | B15: 38687.20284 | C15: 77.91609523 | D15: 280.4979428 | E15: 0.01316929728
A16: 9 | B16: 38604.4978 | C16: 87.48428548 | D16: 314.9434277 | E16: 0.01329708612
A17: 10 | B17: 38512.25493 | C17: 96.99046899 | D17: 349.1656884 | E17: 0.01344107529
A18: 11 | B18: 38410.5401 | C18: 106.4269098 | D18: 383.1368754 | E18: 0.01360165825
A19: 12 | B19: 38299.42702 | C19: 115.7856125 | D19: 416.8282049 | E19: 0.01377927217
A20: 13 | B20: 38178.99755 | C20: 125.0583003 | D20: 450.2098811 | E20: 0.01397439846
A21: 14 | B21: 38049.34195 | C21: 134.236396 | D21: 483.2510254 | E21: 0.01418756331
A22: 15 | B22: 37910.55925 | C22: 143.3110035 | D22: 515.9196126 | E22: 0.01441933819
A23: 16 | B23: 37762.75751 | C23: 152.2728934 | D23: 548.1824163 | E23: 0.01467034031
A24: 17 | B24: 37606.05422 | C24: 161.1124902 | D24: 580.0049648 | E24: 0.01494123294
A25: 18 | B25: 37440.5766 | C25: 169.8198638 | D25: 611.3515095 | E25: 0.01523272568
A26: 19 | B26: 37266.46199 | C26: 178.3847244 | D26: 642.1850077 | E26: 0.01554557455
A27: 20 | B27: 37083.8582 | C27: 186.7964228 | D27: 672.4671221 | E27: 0.01588058189 | H27: Skok z (m) | I27: vmax (m/s) | J27: vmax (km/h) | K27: tletu (s)
A28: 21 | B28: 36892.92386 | C28: 195.0439553 | D28: 702.1582389 | E28: 0.01623859603 | H28: 100 | I28: 39.26070028 | J28: 141.338521 | K28: 5
A29: 22 | B29: 36693.82879 | C29: 203.1159746 | D29: 731.2175086 | E29: 0.01662051077 | H29: 1000 | I29: 56.26464277 | J29: 202.552714 | K29: 22
A30: 23 | B30: 36486.75431 | C30: 211.0008081 | D30: 759.6029093 | E30: 0.01702726445 | H30: 5000 | I30: 69.92412959 | J30: 251.7268665 | K30: 83
A31: 24 | B31: 36271.89356 | C31: 218.6864829 | D31: 787.2713384 | E31: 0.01745983877 | H31: 10000 | I31: 91.02308539 | J31: 327.6831074 | K31: 142
A32: 25 | B32: 36049.45181 | C32: 226.160759 | D32: 814.1787323 | E32: 0.01791925712 | H32: 15000 | I32: 117.1472673 | J32: 421.7301622 | K32: 187
A33: 26 | B33: 35819.64666 | C33: 233.411172 | D33: 840.2802193 | E33: 0.01840658253 | H33: 20000 | I33: 148.6946707 | J33: 535.3008144 | K33: 220
A34: 27 | B34: 35582.70829 | C34: 240.4250849 | D34: 865.5303056 | E34: 0.01892291513 | H34: 25000 | I34: 185.7107765 | J34: 668.5587954 | K34: 246
A35: 28 | B35: 35338.87957 | C35: 247.1897495 | D35: 889.8830981 | E35: 0.01946938902 | H35: 30000 | I35: 227.7770223 | J35: 819.9972803 | K35: 266
A36: 29 | B36: 35088.41614 | C36: 253.6923793 | D36: 913.2925654 | E36: 0.0200471686 | H36: 35000 | I36: 274.2726787 | J36: 987.3816432 | K36: 280
A37: 30 | B37: 34831.58641 | C37: 259.9202323 | D37: 935.7128362 | E37: 0.02065744433 | H37: 40000 | I37: 324.1721468 | J37: 1167.019728 | K37: 292
A38: 31 | B38: 34568.67147 | C38: 265.8607049 | D38: 957.0985376 | E38: 0.02130142772 | H38: 45000 | I38: 376.4274453 | J38: 1355.138803 | K38: 302
A39: 32 | B39: 34299.96492 | C39: 271.5014365 | D39: 977.4051712 | E39: 0.02198034583 | H39: 50000 | I39: 430.0350321 | J39: 1548.126116 | K39: 311
A40: 33 | B40: 34025.77252 | C40: 276.8304236 | D40: 996.5895249 | E40: 0.02269543496 | H40: 55000 | I40: 484.125897 | J40: 1742.853229 | K40: 318
A41: 34 | B41: 33746.41183 | C41: 281.836144 | D41: 1014.610118 | E41: 0.02344793368 | H41: 60000 | I41: 538.004851 | J41: 1936.817464 | K41: 325
A42: 35 | B42: 33462.21163 | C42: 286.507688 | D42: 1031.427677 | E42: 0.02423907546 | H42: 65000 | I42: 591.2212491 | J42: 2128.396497 | K42: 330
A43: 36 | B43: 33173.51124 | C43: 290.8348966 | D43: 1047.005628 | E43: 0.02507008024 | H43: 70000 | I43: 643.4587857 | J43: 2316.451629 | K43: 335
A44: 37 | B44: 32880.65972 | C44: 294.8085036 | D44: 1061.310613 | E44: 0.02594214585 | H44: 75000 | I44: 694.3799882 | J44: 2499.767958 | K44: 340
A45: 38 | B45: 32584.01486 | C45: 298.4202796 | D45: 1074.313007 | E45: 0.02685643886 | H45: 80000 | I45: 743.9857347 | J45: 2678.348645 | K45: 344
A46: 39 | B46: 32283.94213 | C46: 301.6631753 | D46: 1085.987431 | E46: 0.02781408495 | H46: 85000 | I46: 792.160203 | J46: 2851.776731 | K46: 349
A47: 40 | B47: 31980.8134 | C47: 304.5314598 | D47: 1096.313255 | E47: 0.02881615923 | H47: 90000 | I47: 839.0160399 | J47: 3020.457744 | K47: 353
A48: 41 | B48: 31675.00553 | C48: 307.0208526 | D48: 1105.275069 | E48: 0.02986367631 | H48: 100000 | I48: 928.5181568 | J48: 3342.665365 | K48: 360
A49: 42 | B49: 31366.89891 | C49: 309.128643 | D49: 1112.863115 | E49: 0.03095758056
A50: 43 | B50: 31056.87581 | C50: 310.8537954 | D50: 1119.073663 | E50: 0.03209873637
A51: 44 | B51: 30745.31864 | C51: 312.1970365 | D51: 1123.909331 | E51: 0.03328791935
A52: 45 | B52: 30432.60821 | C52: 313.1609198 | D52: 1127.379311 | E52: 0.03452580762
A53: 46 | B53: 30119.1218 | C53: 313.7498668 | D53: 1129.49952 | E53: 0.03581297425
A54: 47 | B54: 29805.23137 | C54: 313.9701797 | D54: 1130.292647 | E54: 0.03714988061
A55: 48 | B55: 29491.30162 | C55: 313.830027 | D55: 1129.788097 | E55: 0.03853687092
A56: 49 | B56: 29177.68817 | C56: 313.3393986 | D56: 1128.021835 | E56: 0.03997416817
A57: 50 | B57: 28864.73576 | C57: 312.5100313 | D57: 1125.036113 | E57: 0.04146187149
A58: 51 | B58: 28552.77657 | C58: 311.3553062 | D58: 1120.879102 | E58: 0.04299995507
A59: 52 | B59: 28242.12865 | C59: 309.8901188 | D59: 1115.604428 | E59: 0.04458826873
A60: 53 | B60: 27933.09442 | C60: 308.1307253 | D60: 1109.270611 | E60: 0.04622654012
A61: 54 | B61: 27625.95946 | C61: 306.0945679 | D61: 1101.940444 | E61: 0.04791437845
A62: 55 | B62: 27320.9914 | C62: 303.8000835 | D62: 1093.680301 | E62: 0.04965127982
A63: 56 | B63: 27018.439 | C63: 301.2665007 | D63: 1084.559403 | E63: 0.05143663398
A64: 57 | B64: 26718.5315 | C64: 298.5136293 | D64: 1074.649065 | E64: 0.05326973226
A65: 58 | B65: 26421.47811 | C65: 295.561647 | D65: 1064.021929 | E65: 0.05514977668
A66: 59 | B66: 26127.4678 | C66: 292.4308896 | D66: 1052.751203 | E66: 0.05707588996
A67: 60 | B67: 25836.66916 | C67: 289.1416473 | D67: 1040.90993 | E67: 0.05904712606
A68: 61 | B68: 25549.23064 | C68: 285.7139723 | D68: 1028.5703 | E68: 0.06106248145
A69: 62 | B69: 25265.28081 | C69: 282.1675006 | D69: 1015.803002 | E69: 0.06312090637
A70: 63 | B70: 24984.92887 | C70: 278.5212913 | D70: 1002.676649 | E70: 0.06522131611
A71: 64 | B71: 24708.26535 | C71: 274.7936857 | D71: 989.2572684 | E71: 0.06736260259
A72: 65 | B72: 24435.36279 | C72: 271.0021854 | D72: 975.6078673 | E72: 0.06954364358
A73: 66 | B73: 24166.27674 | C73: 267.163354 | D73: =C73*3600/1000 -> 961.7880745 | E73: 0.07176331513
A74: 67 | B74: 23901.04666 | C74: 263.292739 | D74: 947.8538604 | E74: 0.07402049974
A75: 68 | B75: 23639.69702 | C75: 259.4048144 | D75: 933.8573318 | E75: 0.07631409538
A76: 69 | B76: 23382.23834 | C76: 255.5129438 | D76: 919.8465975 | E76: 0.07864302345
A77: 70 | B77: 23128.66836 | C77: 251.6293616 | D77: 905.8657017 | E77: 0.08100623572
A78: 71 | B78: 22878.97314 | C78: 247.765171 | D78: 891.9546157 | E78: 0.08340272031
A79: 72 | B79: 22633.12821 | C79: 243.930357 | D79: 878.149285 | E79: 0.08583150684
A80: 73 | B80: 22391.09966 | C80: 240.1338113 | D80: 864.4817208 | E80: 0.08829167047
A81: 74 | B81: 22152.84521 | C81: 236.3833698 | D81: 850.9801314 | E81: 0.09078233518
A82: 75 | B82: 21918.31526 | C82: 232.6858569 | D82: 837.669085 | E82: 0.09330267614
A83: 76 | B83: 21687.45388 | C83: 229.047138 | D83: 824.5696969 | E83: 0.09585192126
A84: 77 | B84: 21460.19972 | C84: 225.4721766 | D84: 811.6998358 | E84: 0.09842935204
A85: 78 | B85: 21236.4869 | C85: 221.965095 | D85: 799.0743418 | E85: 0.1010343038
A86: 79 | B86: 21016.24578 | C86: 218.5292368 | D86: 786.7052524 | E86: 0.1036661651
A87: 80 | B87: 20799.4038 | C87: 215.1672309 | D87: 774.6020311 | E87: 0.1063243771
A88: 81 | B88: 20585.88604 | C88: 211.8810542 | D88: 762.771795 | E88: 0.1090084322
A89: 82 | B89: 20375.61594 | C89: 208.6720939 | D89: 751.2195381 | E89: 0.1117178719
A90: 83 | B90: 20168.51582 | C90: 205.5412077 | D90: 739.9483478 | E90: 0.1144522855
A91: 84 | B91: 19964.50737 | C91: 202.4887813 | D91: 728.9596126 | E91: 0.1172113072
A92: 85 | B92: 19763.51211 | C92: 199.5147831 | D92: 718.2532191 | E92: 0.1199946142
A93: 86 | B93: 19565.45179 | C93: 196.618816 | D93: 707.8277375 | E93: 0.1228019239
A94: 87 | B94: 19370.2487 | C94: 193.8001653 | D94: 697.6805951 | E94: 0.1256329913
A95: 88 | B95: 19177.82601 | C95: 191.0578436 | D95: 687.808237 | E95: 0.1284876067
A96: 89 | B96: 18988.10798 | C96: 188.3906316 | D96: 678.2062738 | E96: 0.1313655924
A97: 90 | B97: 18801.02018 | C97: 185.7971158 | D97: 668.8696167 | E97: 0.1342668008
A98: 91 | B98: 18616.4897 | C98: 183.2757225 | D98: 659.7926008 | E98: 0.1371911115
A99: 92 | B99: 18434.44526 | C99: 180.8247489 | D99: 650.9690959 | E99: 0.140138429
A100: 93 | B100: 18254.81733 | C100: 178.4423905 | D100: 642.3926057 | E100: 0.1431086799
A101: 94 | B101: 18077.53824 | C101: 176.1267659 | D101: 634.0563573 | E101: 0.1461018112
A102: 95 | B102: 17902.5422 | C102: 173.8759387 | D102: 625.9533793 | E102: 0.149117788
A103: 96 | B103: 17729.76542 | C103: 171.6879366 | D103: 618.0765716 | E103: 0.1521565911
A104: 97 | B104: 17559.14605 | C104: 169.5607682 | D104: 610.4187655 | E104: 0.1552182157
A105: 98 | B105: 17390.62427 | C105: 167.492438 | D105: 602.9727767 | E105: 0.1583026691
A106: 99 | B106: 17224.14223 | C106: 165.4809584 | D106: 595.7314503 | E106: 0.1614099695
A107: 100 | B107: 17059.64406 | C107: 163.524361 | D107: 588.6876995 | E107: 0.164540144
A108: 101 | B108: 16897.07586 | C108: 161.6207051 | D108: 581.8345383 | E108: 0.1676932279
A109: 102 | B109: 16736.38564 | C109: 159.7680856 | D109: 575.1651082 | E109: 0.1708692627
A110: 103 | B110: 16577.5233 | C110: 157.9646392 | D110: 568.672701 | E110: 0.1740682955
A111: 104 | B111: 16420.44057 | C111: 156.208549 | D111: 562.3507765 | E111: 0.1772903779
A112: 105 | B112: 16265.091 | C112: 154.4980491 | D112: 556.1929766 | E112: 0.1805355645
A113: 106 | B113: 16111.42985 | C113: 152.8314267 | D113: 550.1931362 | E113: 0.1838039131
A114: 107 | B114: 15959.41408 | C114: 151.2070252 | D114: 544.3452907 | E114: 0.1870954831
A115: 108 | B115: 15809.00226 | C115: 149.6232449 | D115: 538.6436817 | E115: 0.1904103351
A116: 109 | B116: 15660.15456 | C116: 148.0785443 | D116: 533.0827595 | E116: 0.1937485306
A117: 110 | B117: 15512.83264 | C117: 146.57144 | D117: 527.6571841 | E117: 0.1971101312
A118: 111 | B118: 15366.99962 | C118: 145.100507 | D118: 522.3618253 | E118: 0.2004951982
A119: 112 | B119: 15222.62003 | C119: 143.6643777 | D119: 517.1917598 | E119: 0.2039037925
A120: 113 | B120: 15079.6597 | C120: 142.2617413 | D120: 512.1422688 | E120: 0.207335974
A121: 114 | B121: 14938.0858 | C121: 140.8913427 | D121: 507.2088337 | E121: 0.2107918014
A122: 115 | B122: 14797.86667 | C122: 139.5519809 | D122: 502.3871312 | E122: 0.2142713323
A123: 116 | B123: 14658.97187 | C123: 138.2425077 | D123: 497.6730278 | E123: 0.2177746225
A124: 117 | B124: 14521.37206 | C124: 136.9618262 | D124: 493.0625742 | E124: 0.2213017264
A125: 118 | B125: 14385.03897 | C125: 135.7088885 | D125: 488.5519987 | E125: 0.2248526965
A126: 119 | B126: 14249.94537 | C126: 134.4826946 | D126: 484.1377007 | E126: 0.2284275834
A127: 120 | B127: 14116.06499 | C127: 133.2822901 | D127: 479.8162444 | E127: 0.2320264362
A128: 121 | B128: 13983.3725 | C128: 132.1067643 | D128: 475.5843516 | E128: 0.2356493016
A129: 122 | B129: 13851.84346 | C129: 130.9552487 | D129: 471.4388953 | E129: 0.2392962249
A130: 123 | B130: 13721.45427 | C130: 129.8269146 | D130: 467.3768926 | E130: 0.2429672491
A131: 124 | B131: 13592.18216 | C131: 128.7209718 | D131: 463.3954985 | E131: 0.2466624157
A132: 125 | B132: 13464.00512 | C132: 127.6366665 | D132: 459.4919993 | E132: 0.250381764
A133: 126 | B133: 13336.90186 | C133: 126.5732794 | D133: 455.6638059 | E133: 0.2541253318
A134: 127 | B134: 13210.85182 | C134: 125.5301245 | D134: 451.9084481 | E134: 0.257893155
A135: 128 | B135: 13085.83508 | C135: 124.5065468 | D135: 448.2235686 | E135: 0.2616852677
A136: 129 | B136: 12961.8324 | C136: 123.5019214 | D136: 444.6069169 | E136: 0.2655017026
A137: 130 | B137: 12838.82512 | C137: 122.5156512 | D137: =C137*3600/1000 -> 441.0563443 | E137: 0.2693424907
A138: 131 | B138: 12716.79517 | C138: 121.5471662 | D138: 437.5697982 | E138: 0.2732076614
A139: 132 | B139: 12595.72504 | C139: 120.5959215 | D139: 434.1453174 | E139: 0.2770972428
A140: 133 | B140: 12475.59776 | C140: 119.6613964 | D140: 430.7810269 | E140: 0.2810112615
A141: 134 | B141: 12356.39684 | C141: 118.7430927 | D141: 427.4751337 | E141: 0.2849497428
A142: 135 | B142: 12238.10632 | C142: 117.840534 | D142: 424.2259224 | E142: 0.2889127107
A143: 136 | B143: 12120.71068 | C143: 116.9532641 | D143: 421.0317507 | E143: 0.2929001881
A144: 137 | B144: 12004.19485 | C144: 116.0808461 | D144: 417.8910461 | E144: 0.2969121966
A145: 138 | B145: 11888.54418 | C145: 115.2228616 | D145: 414.8023017 | E145: 0.3009487569
A146: 139 | B146: 11773.74445 | C146: 114.3789092 | D146: 411.764073 | E146: 0.3050098886
A147: 140 | B147: 11659.78181 | C147: 113.548604 | D147: 408.7749744 | E147: 0.3090956101
A148: 141 | B148: 11546.64281 | C148: 112.7315768 | D148: 405.8336764 | E148: 0.3132059393
A149: 142 | B149: 11434.31435 | C149: 111.9274728 | D149: 402.9389022 | E149: 0.317340893
A150: 143 | B150: 11322.78367 | C150: 111.1359516 | D150: 400.0894256 | E150: 0.321500487
A151: 144 | B151: 11212.03836 | C151: 110.3566855 | D151: 397.2840678 | E151: 0.3256847367
A152: 145 | B152: 11102.06632 | C152: 109.5893598 | D152: 394.5216951 | E152: 0.3298936559
A153: 146 | B153: 10992.85576 | C153: 108.8336714 | D153: 391.801217 | E153: 0.3341272597
A154: 147 | B154: 10884.3952 | C154: 108.0893288 | D154: 389.1215835 | E154: 0.3383855606
A155: 148 | B155: 10776.67342 | C155: 107.3560509 | D155: 386.4817833 | E155: 0.342668571
A156: 149 | B156: 10669.6795 | C156: 106.6335673 | D156: 383.8808421 | E156: 0.346976303
A157: 150 | B157: 10563.40277 | C157: 105.9216168 | D157: 381.3178203 | E157: 0.3513087679
A158: 151 | B158: 10457.83284 | C158: 105.2199477 | D158: 378.7918118 | E158: 0.3556659766
A159: 152 | B159: 10352.95953 | C159: 104.5283172 | D159: 376.3019421 | E159: 0.3600479396
A160: 153 | B160: 10248.77293 | C160: 103.8464908 | D160: 373.8473669 | E160: 0.3644546667
A161: 154 | B161: 10145.26336 | C161: 103.1742419 | D161: 371.4272708 | E161: 0.3688861674
A162: 155 | B162: 10042.42133 | C162: 102.5113516 | D162: 369.0408657 | E162: 0.3733424509
A163: 156 | B163: 9940.237603 | C163: 101.8576083 | D163: 366.6873897 | E163: 0.3778235257
A164: 157 | B164: 9838.703132 | C164: 101.2128073 | D164: 364.3661062 | E164: 0.3823294004
A165: 158 | B165: 9737.809074 | C165: 100.5767506 | D165: 362.0763021 | E165: 0.3868600827
A166: 159 | B166: 9637.54678 | C166: 99.94924654 | D166: 359.8172875 | E166: 0.3914155804
A167: 160 | B167: 9537.907792 | C167: 99.3301095 | D167: 357.5883942 | E167: 0.3959959009
A168: 161 | B168: 9438.883832 | C168: 98.71915967 | D168: 355.3889748 | E168: 0.4006010511
A169: 162 | B169: 9340.466801 | C169: 98.11622284 | D169: 353.2184022 | E169: 0.4052310378
A170: 163 | B170: 9242.648772 | C170: 97.5211301 | D170: 351.0760684 | E170: 0.4098858675
A171: 164 | B171: 9145.421981 | C171: 96.93371766 | D171: 348.9613836 | E171: 0.4145655465
A172: 165 | B172: 9048.778829 | C172: 96.35382665 | D172: 346.8737759 | E172: 0.4192700807
A173: 166 | B173: 8952.711872 | C173: 95.78130288 | D173: 344.8126904 | E173: 0.4239994759
A174: 167 | B174: 8857.213817 | C174: 95.2159967 | D174: 342.7775881 | E174: 0.4287537378
A175: 168 | B175: 8762.277521 | C175: 94.65776277 | D175: 340.767946 | E175: 0.4335328716
A176: 169 | B176: 8667.895981 | C176: 94.10645996 | D176: 338.7832559 | E176: 0.4383368824
A177: 170 | B177: 8574.062336 | C177: 93.56195112 | D177: 336.823024 | E177: 0.4431657754
A178: 171 | B178: 8480.769859 | C178: 93.02410297 | D178: 334.8867707 | E178: 0.4480195552
A179: 172 | B179: 8388.011953 | C179: 92.49278593 | D179: 332.9740294 | E179: 0.4528982264
A180: 173 | B180: 8295.782152 | C180: 91.96787401 | D180: 331.0843464 | E180: 0.4578017936
A181: 174 | B181: 8204.074111 | C181: 91.44924466 | D181: 329.2172808 | E181: 0.462730261
A182: 175 | B182: 8112.881608 | C182: 90.93677862 | D182: 327.372403 | E182: 0.4676836328
A183: 176 | B183: 8022.198538 | C183: 90.43035987 | D183: 325.5492955 | E183: 0.472661913
A184: 177 | B184: 7932.01891 | C184: 89.92987545 | D184: 323.7475516 | E184: 0.4776651055
A185: 178 | B185: 7842.336846 | C185: 89.43521537 | D185: 321.9667753 | E185: 0.482693214
A186: 179 | B186: 7753.146574 | C186: 88.94627253 | D186: 320.2065811 | E186: 0.4877462421
A187: 180 | B187: 7664.44243 | C187: 88.46294258 | D187: 318.4665933 | E187: 0.4928241934
A188: 181 | B188: 7576.218851 | C188: 87.98512387 | D188: 316.7464459 | E188: 0.4979270713
A189: 182 | B189: 7488.470378 | C189: 87.51271732 | D189: 315.0457824 | E189: 0.5030548789
A190: 183 | B190: 7401.191645 | C190: 87.04562635 | D190: 313.3642549 | E190: 0.5082076196
A191: 184 | B191: 7314.377385 | C191: 86.58375681 | D191: 311.7015245 | E191: 0.5133852963
A192: 185 | B192: 7228.022421 | C192: 86.12701687 | D192: 310.0572607 | E192: 0.5185879121
A193: 186 | B193: 7142.121671 | C193: 85.67531696 | D193: 308.4311411 | E193: 0.5238154698
A194: 187 | B194: 7056.670136 | C194: 85.22856973 | D194: 306.822851 | E194: 0.5290679723
A195: 188 | B195: 6971.662909 | C195: 84.78668989 | D195: 305.2320836 | E195: 0.5343454222
A196: 189 | B196: 6887.095162 | C196: 84.34959426 | D196: 303.6585393 | E196: 0.5396478222
A197: 190 | B197: 6802.962153 | C197: 83.91720159 | D197: 302.1019257 | E197: 0.5449751749
A198: 191 | B198: 6719.259217 | C198: 83.48943261 | D198: 300.5619574 | E198: 0.5503274827
A199: 192 | B199: 6635.981772 | C199: 83.06620986 | D199: 299.0383555 | E199: 0.555704748
A200: 193 | B200: 6553.125307 | C200: 82.64745773 | D200: 297.5308478 | E200: 0.5611069731
... 98 more rows
